bitfinex-derivatives/quotes_SOLF0:USTF0_20250623
["timestamp","ask_amount","ask_price","bid_price","bid_amount"]
[1750637780738,187.86,132.18,132.12,2.4958]
[1750637781131,7.5646,132.16,132.12,2.4958]
[1750637781330,7.5646,132.16,132.11,8.25454475]
[1750637781535,196.11454475,132.18,132.11,8.25454475]
[1750637782035,203.67784475,132.18,132.14,7.5654]
[1750637782235,187.86,132.18,132.11,8.25454475]
[1750637782435,7.5653,132.15,132.11,7.5669]
[1750637782636,40.38,132.14,132.11,7.5669]
[1750637782835,40.38,132.14,132.09,13.23714475]
[1750637783238,40.38,132.14,132.1,7.5674]
[1750637783938,40.38,132.14,132.09,12.5507]
[1750637784240,7.5663,132.13,132.09,7.5681]
[1750637784840,7.5666,132.12,132.09,7.5681]
[1750637785435,7.5662,132.13,132.09,7.5681]
[1750637786043,48.63454475,132.14,132.08,7.5686]
[1750637786639,7.5669,132.12,132.08,7.5686]
[1750637786940,48.63454475,132.14,132.09,7.5679]
[1750637787135,8.25091603,132.12,132.05,4.8225]
[1750637787642,14.07140057,132.12,132.06,7.5694]
[1750637788134,81.25091603,132.13,132.07,7.569]
[1750637788941,81.25091603,132.13,132.06,7.5697]
[1750637789332,7.5688,132.09,132.05,12.3929]
[1750637789534,47.9488,132.09,132.05,4.8225]
[1750637789739,40.38,132.09,132.03,8.25091603]
[1750637790737,47.9488,132.09,132.03,8.25091603]
[1750637791539,7.569,132.08,132.05,7.5702]
[1750637792048,47.9484,132.09,132.03,8.25091603]
[1750637792243,47.9484,132.09,132.04,8.25091603]
[1750637792749,7.5689,132.08,132.04,15.82161603]
[1750637792944,40.38,132.09,132.04,8.25091603]
[1750637793748,40.38,132.09,132.07,7.569]
[1750637795847,40.38,132.09,132.08,7.5688]
[1750637796049,260.54,132.12,132.07,8.25091603]
[1750637796249,260.54,132.12,132.06,7.2536]
[1750637796448,7.5676,132.11,132.06,7.2536]
[1750637796648,7.5676,132.11,132.06,4.7373]
[1750637796649,12.09407487,132.11,132.06,4.7373]
[1750637796849,15.11215052,132.11,132.05,8.25091603]
[1750637797151,73.0,132.11,132.05,8.25091603]
[1750637797346,5.84041811,132.1,132.05,8.25091603]
[1750637797556,73.0,132.11,132.05,8.25091603]
[1750637798561,80.5674,132.11,132.07,7.5693]
[1750637800157,73.0,132.11,132.07,8.25091603]
[1750637800556,40.38,132.12,132.1,7.5677]
[1750637801063,40.38,132.12,132.09,8.25091603]
[1750637801562,49.2381373,132.15,132.12,7.5665]
[1750637801755,40.38,132.15,132.11,8.25091603]
[1750637802156,40.38,132.15,132.14,7.5654]
[1750637802551,40.38,132.15,132.11,8.25091603]
[1750637802753,40.38,132.15,132.09,2.395]
[1750637802952,40.38,132.15,132.08,4.7491]
[1750637803151,161.60372599,132.14,132.06,7.5696]
[1750637803357,8.25091603,132.12,132.04,2.395]
[1750637803558,40.38,132.11,132.04,2.395]
[1750637803753,40.38,132.11,132.05,8.25091603]
[1750637803954,40.38,132.11,132.05,13.00001603]
[1750637804359,40.38,132.11,132.07,7.5691]
[1750637804360,47.9474,132.11,132.07,7.5691]
[1750637804761,47.9474,132.11,132.05,13.00001603]
[1750637805264,40.38,132.11,132.08,7.5685]
[1750637805867,40.38,132.11,132.07,7.5692]
[1750637806259,47.9474,132.11,132.07,7.5692]
[1750637806464,47.9474,132.11,132.08,7.5688]
[1750637806663,47.9474,132.11,132.05,13.00001603]
[1750637807462,47.9474,132.11,132.07,7.5692]
[1750637807666,40.38,132.11,132.05,13.00001603]
[1750637807854,40.38,132.11,132.07,8.25091603]
[1750637808058,40.38,132.11,132.09,7.5678]
[1750637808264,40.38,132.14,132.09,8.25091603]
[1750637808463,40.38,132.14,132.11,8.25091603]
[1750637808862,40.38,132.14,132.13,7.566]
[1750637810060,653.9,132.2,132.12,8.24140877]
[1750637810061,694.28,132.2,132.12,8.24140877]
[1750637810265,694.28,132.2,132.15,8.24140877]
[1750637811367,694.28,132.2,132.13,2.4079]
[1750637811572,694.28,132.2,132.14,8.24140877]
[1750637811963,694.28,132.2,132.16,8.24140877]
[1750637812163,694.28,132.2,132.08,40.4]
[1750637812364,7.5641,132.17,132.13,7.5655]
[1750637812962,7.5646,132.16,132.1,8.24140877]
[1750637813165,47.9646,132.16,132.1,8.24140877]
[1750637813469,47.9646,132.16,132.12,7.5662]
[1750637815875,8.24140877,132.15,132.08,48.64140877]
[1750637816167,8.24140877,132.11,132.05,4.7629]
[1750637816373,7.5688,132.09,132.05,4.7629]
[1750637816965,47.9479,132.1,132.05,4.7629]
[1750637817163,40.38,132.1,132.05,4.7629]
[1750637817567,47.9481,132.1,132.06,28.8697]
[1750637817972,47.9481,132.1,132.06,21.3]
[1750637818374,40.38,132.1,132.06,21.3]
[1750637819076,40.38,132.1,132.08,7.5683]
[1750637821276,40.38,132.1,132.09,7.5683]
[1750637821477,40.38,132.1,132.05,15.35260877]
[1750637822479,40.38,132.1,132.09,7.5683]
[1750637822973,147.32,132.12,132.05,15.35260877]
[1750637822974,40.4,132.13,132.07,8.24140877]
[1750637823169,40.4,132.13,132.1,7.5672]
[1750637823369,47.966,132.13,132.07,8.24140877]
[1750637823578,47.966,132.13,132.1,7.5676]
[1750637824780,47.966,132.13,132.09,7.568]
[1750637825082,7.567,132.12,132.09,7.568]
[1750637825280,48.64140877,132.13,132.06,40.4]
[1750637825481,40.4,132.13,132.09,8.24140877]
[1750637826384,40.4,132.13,132.1,21.3]
[1750637826684,40.4,132.13,132.12,7.5665]
[1750637827280,73.0,132.15,132.13,7.5659]
[1750637827777,47.9443,132.16,132.12,7.5663]
[1750637828375,40.38,132.16,132.1,21.3]
[1750637828776,694.28,132.2,132.13,8.24091613]
[1750637828986,701.842,132.2,132.16,7.5638]
[1750637829180,694.28,132.2,132.13,8.24091613]
[1750637829581,694.28,132.2,132.15,8.24091613]
[1750637829786,40.38,132.2,132.15,8.24091613]
[1750637829984,40.38,132.2,132.17,8.24091613]
[1750637830185,53.77564523,132.23,132.2,7.5618]
[1750637830384,162.89549245,132.25,132.19,8.23558622]
[1750637830587,162.89549245,132.25,132.21,8.23558622]
[1750637830886,40.38,132.3,132.23,8.23558622]
[1750637831084,13.82113847,132.29,132.25,7.5587]
[1750637831284,6.26393847,132.28,132.2,10.67448622]
[1750637831581,40.38,132.3,132.28,7.5574]
[1750637831775,40.38,132.3,132.24,8.23001539]
[1750637831977,6.25665018,132.29,132.2,2.4389]
[1750637832177,12.07583483,132.29,132.21,8.23001539]
[1750637832374,40.38,132.3,132.23,8.23001539]
[1750637832786,7.5585,132.27,132.23,8.23001539]
[1750637832987,6.28058741,132.29,132.23,8.23001539]
[1750637833381,40.38,132.3,132.22,15.79071539]
[1750637833583,43.38088095,132.3,132.22,15.79071539]
[1750637833778,6.2752075,132.29,132.22,15.79071539]
[1750637833990,7.5589,132.26,132.22,15.79071539]
[1750637834985,40.38,132.3,132.23,7.5602]
[1750637835188,46.18534737,132.3,132.23,7.5602]
[1750637835378,6.26663998,132.29,132.22,26.11061539]
[1750637835583,7.5589,132.26,132.22,26.11061539]
[1750637835979,7.5582,132.27,132.23,7.5602]
[1750637836181,40.38,132.3,132.22,18.55001539]
[1750637836389,73.0,132.29,132.22,18.55001539]
[1750637836589,7.5583,132.27,132.23,7.5601]
[1750637837090,40.36,132.26,132.22,10.32]
[1750637837788,47.9189,132.26,132.22,17.8804]
[1750637840385,40.36,132.26,132.22,17.8804]
[1750637840988,47.9188,132.26,132.22,17.8804]
[1750637841190,40.36,132.26,132.22,17.8804]
[1750637841593,40.36,132.26,132.22,10.32]
[1750637841594,8.2293096,132.24,132.22,10.32]
[1750637842089,48.5893096,132.26,132.22,10.32]
[1750637842290,40.36,132.26,132.22,10.32]
[1750637842688,7.5595,132.25,132.22,10.32]
[1750637843293,7.5598,132.24,132.22,10.32]
[1750637844600,40.36,132.26,132.22,10.32]
[1750637845292,48.5893096,132.26,132.22,10.32]
[1750637845895,48.5893096,132.26,132.23,7.56]
[1750637846099,40.36,132.26,132.22,10.32]
[1750637846601,40.36,132.26,132.25,7.5591]
[1750637846802,73.0,132.3,132.23,8.2293096]
[1750637847095,40.46,132.3,132.25,8.2293096]
[1750637848994,40.46,132.3,132.29,7.5568]
[1750637849303,40.46,132.35,132.29,8.2293096]
[1750637850089,40.46,132.35,132.32,7.5551]
[1750637850295,40.46,132.35,132.3,21.29]
[1750637850794,40.46,132.35,132.32,7.5548]
[1750637850994,40.46,132.35,132.3,21.29]
[1750637851198,8.2293096,132.34,132.3,21.29]
[1750637851702,7.5549,132.33,132.3,21.29]
[1750637852298,7.5552,132.32,132.3,21.29]
[1750637853101,5.8203783,132.34,132.3,21.29]
[1750637853706,7.5547,132.33,132.3,21.29]
[1750637854508,5.8203783,132.34,132.3,21.29]
[1750637854703,12.13004784,132.34,132.3,21.29]
[1750637855096,7.5552,132.32,132.3,21.29]
[1750637855300,40.46,132.31,132.3,21.29]
[1750637855903,40.46,132.31,132.3,28.8463]
[1750637856403,40.46,132.34,132.3,29.5193096]
[1750637856606,40.46,132.34,132.33,7.554]
[1750637860108,40.46,132.34,132.3,21.29]
[1750637860514,40.46,132.34,132.32,7.5548]
[1750637861012,40.46,132.34,132.3,21.29]
[1750637861202,40.46,132.34,132.31,7.5554]
[1750637863214,40.46,132.34,132.27,12.9999096]
[1750637863422,155.1893096,132.33,132.24,8.2293096]
[1750637863620,8.2293096,132.31,132.26,7.5584]
[1750637863818,40.44,132.3,132.26,7.5584]
[1750637864020,40.44,132.3,132.23,18.9093096]
[1750637864217,40.44,132.3,132.27,21.6]
[1750637864218,7.5572,132.29,132.27,21.6]
[1750637864419,46.263651,132.3,132.27,21.6]
[1750637864720,40.44,132.3,132.27,21.6]
[1750637864914,40.44,132.3,132.27,29.1577]
[1750637865110,40.44,132.3,132.27,21.6]
[1750637865921,40.44,132.3,132.29,7.5568]
[1750637867322,40.44,132.33,132.32,7.5551]
[1750637868419,40.44,132.33,132.31,7.5553]
[1750637869333,53.82421482,132.33,132.28,7.2963]
[1750637869525,40.44,132.33,132.28,15.518385]
[1750637869828,40.44,132.33,132.32,7.5551]
[1750637871932,46.29376149,132.33,132.32,7.5551]
[1750637872335,40.44,132.36,132.35,7.5534]
[1750637872534,52.49114912,132.36,132.35,7.5534]
[1750637872734,55.50866422,132.36,132.35,7.5534]
[1750637873426,52.49084731,132.36,132.34,7.5537]
[1750637873623,12.17084731,132.35,132.3,8.222085]
[1750637873823,12.17084731,132.34,132.3,8.222085]
[1750637874133,40.32,132.36,132.3,8.222085]
[1750637874435,12.19553964,132.35,132.3,8.222085]
[1750637874630,12.19553964,132.34,132.3,8.222085]
[1750637874929,47.8729,132.36,132.3,8.222085]
[1750637875125,12.19883291,132.35,132.3,8.222085]
[1750637875329,12.20111587,132.34,132.3,8.222085]
[1750637875527,47.8729,132.36,132.3,8.222085]
[1750637875725,12.20010128,132.35,132.33,7.5542]
[1750637875928,6.35035762,132.34,132.33,7.5542]
[1750637876327,40.32,132.36,132.3,8.222085]
[1750637876328,40.32,132.36,132.34,7.5535]
[1750637876639,12.19900311,132.35,132.28,7.2963]
[1750637876831,8.22549947,132.33,132.27,21.6]
[1750637877138,8.22549947,132.28,132.12,40.32]
[1750637877335,7.5589,132.26,132.21,7.5611]
[1750637877538,9.31900166,132.31,132.2,8.22549947]
[1750637877841,8.22549947,132.29,132.2,8.22549947]
[1750637878132,8.22549947,132.29,132.17,8.22549947]
[1750637878133,8.22549947,132.25,132.17,8.22549947]
[1750637878335,52.53942391,132.24,132.17,4.8076]
[1750637878536,20.44492338,132.23,132.17,4.8076]
[1750637878730,12.21942391,132.22,132.17,4.8076]
[1750637878924,8.22549947,132.23,132.17,4.8076]
[1750637879127,7.5629,132.19,132.16,10.53]
[1750637879326,40.32,132.19,132.16,10.53]
[1750637879532,48.54549947,132.19,132.16,10.53]
[1750637879735,15.78919947,132.17,132.16,10.53]
[1750637879931,22.15363615,132.17,132.16,10.53]
[1750637880431,40.32,132.17,132.16,10.53]
[1750637881133,40.32,132.17,132.14,0.08]
[1750637882033,40.32,132.17,132.16,7.5643]
[1750637883236,40.34,132.19,132.15,7.5646]
[1750637883434,40.34,132.19,132.14,0.08]
[1750637884535,40.34,132.19,132.16,7.5639]
[1750637884741,40.34,132.19,132.14,0.08]
[1750637884940,40.34,132.19,132.16,7.5639]
[1750637885344,15.78709947,132.21,132.16,7.5639]
[1750637885549,40.34,132.19,132.16,7.5639]
[1750637885947,48.56549947,132.19,132.14,0.08]
[1750637886340,40.34,132.19,132.15,7.5647]
[1750637886541,40.34,132.19,132.14,0.08]
[1750637887046,40.34,132.19,132.14,8.30549947]
[1750637887851,40.34,132.19,132.16,8.22549947]
[1750637888039,40.34,132.22,132.16,8.22549947]
[1750637888749,40.34,132.22,132.18,8.22549947]
[1750637889144,40.34,132.22,132.2,7.5616]
[1750637890647,40.34,132.22,132.21,7.5614]
[1750637891352,40.34,132.22,132.2,7.5618]
[1750637893354,40.34,132.22,132.17,8.22549947]
[1750637894155,40.34,132.26,132.21,8.22549947]
[1750637894355,9.31900166,132.36,132.23,8.22549947]
[1750637894646,40.36,132.31,132.25,8.22549947]
[1750637894857,40.36,132.31,132.24,2.4622]
[1750637894858,40.36,132.31,132.27,8.22549947]
[1750637895751,40.36,132.31,132.3,7.5563]
[1750637897649,40.36,132.31,132.29,8.22549947]
[1750637897650,40.34,132.34,132.32,7.555]
[1750637897849,40.34,132.34,132.31,8.22549947]
[1750637898151,40.34,132.34,132.33,7.5545]
[1750637898351,40.34,132.34,132.31,8.22549947]
[1750637898547,693.6,132.37,132.33,8.22549947]
[1750637898750,40.34,132.4,132.35,8.22549947]
[1750637899060,7.5512,132.39,132.35,8.22549947]
[1750637899251,7.5512,132.39,132.35,15.77849947]
[1750637899652,7.5512,132.39,132.35,7.553]
[1750637899850,40.34,132.4,132.32,4.8626]
[1750637900063,40.34,132.4,132.32,13.08809947]
[1750637900253,7.5519,132.38,132.34,7.5539]
[1750637900956,40.34,132.4,132.32,13.08809947]
[1750637901158,40.34,132.4,132.31,40.34]
[1750637901159,8.22549947,132.37,132.3,8.22549947]
[1750637901353,40.32,132.36,132.3,8.22549947]
[1750637901859,47.8732,132.36,132.32,7.5551]
[1750637902059,40.32,132.36,132.3,8.22549947]
[1750637902659,7.5544,132.34,132.3,7.5559]
[1750637902958,73.0,132.35,132.28,8.22549947]
[1750637903358,80.5538,132.35,132.3,7.5557]
[1750637903659,80.5538,132.35,132.28,18.76549947]
[1750637903959,80.5538,132.35,132.3,7.5562]
[1750637904159,7.554,132.34,132.28,18.76549947]
[1750637904557,7.554,132.34,132.3,7.5558]
[1750637905955,7.554,132.34,132.31,7.5557]
[1750637906459,7.554,132.34,132.3,7.5561]
[1750637906656,7.5546,132.33,132.28,18.76549947]
[1750637906850,113.88,132.32,132.28,10.54]
[1750637907057,40.88,132.31,132.28,10.54]
[1750637907454,40.88,132.31,132.29,7.5568]
[1750637908859,40.88,132.31,132.28,18.0972]
[1750637909256,40.88,132.31,132.28,10.54]
[1750637910160,113.88,132.34,132.28,18.76549947]
[1750637910462,113.88,132.34,132.29,0.1]
[1750637910960,113.88,132.34,132.31,7.5557]
[1750637911162,113.88,132.34,132.29,0.1]
[1750637911555,121.4341,132.34,132.29,0.1]
[1750637912056,121.4341,132.34,132.3,7.5559]
[1750637912259,7.5554,132.32,132.29,0.1]
[1750637912559,81.22549947,132.33,132.29,0.1]
[1750637912763,7.5568,132.29,132.28,6.8708]
[1750637912959,56.66229947,132.29,132.28,6.8708]
[1750637913163,49.10549947,132.29,132.24,7.5593]
[1750637913364,7.5578,132.28,132.24,7.5593]
[1750637913565,7.5578,132.28,132.22,2.4642]
[1750637913862,49.10549947,132.29,132.22,2.4642]
[1750637913863,7.5583,132.27,132.22,2.4642]
[1750637914265,7.5583,132.27,132.23,7.5599]
[1750637914565,8.22549947,132.27,132.19,10.51769947]
[1750637914767,8.22549947,132.27,132.21,7.5611]
[1750637915159,7.5593,132.25,132.21,7.5611]
[1750637915463,40.88,132.24,132.21,7.5611]
[1750637915659,48.4397,132.24,132.21,7.5611]
[1750637915864,40.88,132.24,132.17,13.03479947]
[1750637916066,40.88,132.24,132.17,10.68319947]
[1750637916363,40.88,132.24,132.19,7.5622]
[1750637916665,8.22549947,132.21,132.04,232.48979337]
[1750637916868,196.82549947,132.2,132.15,7.5646]
[1750637917062,40.88,132.19,132.15,7.5646]
[1750637917259,48.4429,132.19,132.14,6.9]
[1750637917561,40.88,132.19,132.14,6.9]
[1750637917762,8.22549947,132.2,132.14,6.9]
[1750637917964,40.88,132.22,132.17,7.5637]
[1750637918367,40.88,132.22,132.16,8.22549947]
[1750637919067,7.5614,132.21,132.17,7.5633]
[1750637919965,8.22549947,132.19,132.14,6.9]
[1750637920166,49.12549947,132.18,132.14,6.9]
[1750637920760,56.68899947,132.18,132.14,14.4653]
[1750637920962,49.12549947,132.18,132.14,6.9]
[1750637921571,8.22549947,132.16,132.14,6.9]
[1750637922069,8.22549947,132.19,132.11,8.22549947]
[1750637922268,40.9,132.18,132.13,8.22549947]
[1750637922662,40.9,132.18,132.14,5.0032]
[1750637923769,40.9,132.18,132.15,7.5644]
[1750637923956,40.9,132.18,132.15,8.22549947]
[1750637924158,40.9,132.18,132.17,7.5637]
[1750637924670,40.9,132.18,132.15,8.22549947]
[1750637924871,40.9,132.18,132.16,7.5639]
[1750637925169,40.9,132.18,132.15,8.22549947]
[1750637925570,40.9,132.18,132.17,7.5637]
[1750637926460,188.64,132.21,132.19,7.5624]
[1750637926661,188.64,132.21,132.17,8.22549947]
[1750637927068,188.64,132.21,132.2,7.562]
[1750637927472,188.64,132.21,132.17,8.22549947]
[1750637927674,188.64,132.21,132.18,7.5627]
[1750637928575,188.64,132.21,132.15,10.67059947]
[1750637928776,188.64,132.21,132.17,8.22549947]
[1750637929274,40.9,132.21,132.17,8.22549947]
[1750637929774,40.9,132.24,132.19,8.22549947]
[1750637929963,40.9,132.24,132.15,43.3451]
[1750637930163,40.9,132.24,132.19,8.23245452]
[1750637930372,40.9,132.24,132.22,7.5607]
[1750637931578,40.9,132.24,132.21,7.5612]
[1750637931981,40.9,132.24,132.22,7.5608]
[1750637932774,40.9,132.24,132.23,7.5603]
[1750637932973,188.76,132.27,132.21,8.23245452]
[1750637933481,41.04,132.27,132.25,7.559]
[1750637933685,41.04,132.27,132.23,8.23245452]
[1750637934183,41.04,132.27,132.25,7.5591]
[1750637936987,41.04,132.27,132.26,7.5585]
[1750637937385,114.04,132.3,132.28,7.557]
[1750637937581,41.04,132.3,132.28,7.557]
[1750637938486,41.04,132.3,132.29,7.5568]
[1750637939091,41.04,132.33,132.32,7.5551]
[1750637940591,41.04,132.33,132.26,2.3964]
[1750637941792,8.23245452,132.3,132.24,9.2052]
[1750637941984,188.7,132.29,132.24,6.91]
[1750637943395,7.5577,132.28,132.24,6.91]
[1750637943593,188.7,132.29,132.24,6.91]
[1750637943787,8.23245452,132.28,132.24,6.91]
[1750637943991,7.5591,132.25,132.24,6.91]
[1750637944293,48.5791,132.25,132.21,7.561]
[1750637944694,7.5597,132.24,132.21,7.561]
[1750637945293,41.02,132.25,132.19,8.23245452]
[1750637945491,8.23245452,132.28,132.23,8.23245452]
[1750637945492,41.02,132.28,132.23,8.23245452]
[1750637945691,41.02,132.31,132.27,8.23245452]
[1750637945894,41.02,132.32,132.29,8.23245452]
[1750637946491,41.02,132.32,132.3,7.5559]
[1750637948502,7.5536,132.35,132.31,7.5554]
[1750637948696,41.02,132.35,132.29,8.23245452]
[1750637948896,41.02,132.35,132.31,8.23245452]
[1750637950697,41.02,132.35,132.33,7.5544]
[1750637951203,41.02,132.35,132.3,8.21884003]
[1750637951802,41.02,132.35,132.32,7.5547]
[1750637952299,41.02,132.35,132.3,8.21884003]
[1750637952501,41.02,132.35,132.25,110.1392]
[1750637952697,41.02,132.35,132.3,8.21884003]
[1750637953003,41.02,132.35,132.32,7.5547]
[1750637954798,41.02,132.35,132.33,7.5545]
[1750637957607,41.02,132.35,132.34,7.554]
[1750637959108,41.02,132.35,132.31,2.3373]
[1750637959699,41.02,132.35,132.26,2.4369]
[1750637959902,8.22412493,132.34,132.26,12.98262493]
[1750637960306,8.22412493,132.34,132.29,7.5564]
[1750637960307,7.5546,132.33,132.29,7.5564]
[1750637961413,15.77832493,132.34,132.3,7.5561]
[1750637961911,41.02,132.35,132.26,12.98262493]
[1750637962114,41.02,132.35,132.28,8.22412493]
[1750637962815,7.554,132.34,132.3,7.5557]
[1750637963114,7.554,132.34,132.28,8.22412493]
[1750637963814,41.02,132.35,132.28,8.22412493]
[1750637964015,41.02,132.35,132.3,8.22412493]
[1750637964215,41.02,132.35,132.32,7.5547]
[1750637964811,41.02,132.35,132.3,8.22412493]
[1750637966917,41.02,132.35,132.3,7.5558]
[1750637967611,41.02,132.35,132.31,7.5556]
[1750637968206,48.5737,132.35,132.31,7.5556]
[1750637968717,121.5737,132.35,132.31,7.5556]
[1750637968914,7.5541,132.34,132.31,7.5556]
[1750637969811,114.02,132.35,132.32,7.5548]
[1750637970717,121.5734,132.35,132.32,7.5548]
[1750637971110,114.02,132.35,132.33,7.5543]
[1750637971319,41.02,132.35,132.33,7.5543]
[1750637972219,41.02,132.35,132.29,6.93]
[1750637972415,114.02,132.35,132.29,6.93]
[1750637972921,114.02,132.35,132.3,8.22412493]
[1750637974219,122.24047308,132.35,132.29,6.93]
[1750637974516,6.34392981,132.34,132.29,6.93]
[1750637974722,13.89872981,132.33,132.29,6.93]
[1750637975220,19.68805433,132.33,132.29,6.93]
[1750637975420,16.3392125,132.33,132.29,6.93]
[1750637975624,7.5548,132.33,132.3,7.5562]
[1750637975812,84.21556106,132.33,132.29,6.93]
[1750637976014,8.22047308,132.31,132.29,6.93]
[1750637976218,63.74263715,132.3,132.29,6.93]
[1750637976716,7.5592,132.25,132.21,8.22047308]
[1750637976917,41.04,132.25,132.19,15.68617308]
[1750637977121,41.04,132.25,132.22,7.5605]
[1750637977322,48.5995,132.25,132.19,15.68617308]
[1750637977625,41.04,132.25,132.19,15.68617308]
[1750637978420,48.5993,132.25,132.19,7.4657]
[1750637978820,48.5993,132.25,132.21,7.561]
[1750637979424,48.5993,132.25,132.22,7.5608]
[1750637979619,41.04,132.25,132.19,7.4657]
[1750637980925,41.04,132.25,132.22,7.5605]
[1750637982015,41.04,132.28,132.22,8.2332522]
[1750637982618,41.04,132.28,132.19,48.5057]
[1750637982619,41.04,132.31,132.26,8.2332522]
[1750637983020,41.04,132.33,132.31,7.5556]
[1750637983225,41.04,132.33,132.28,8.2332522]
[1750637983625,41.04,132.33,132.3,7.5557]
[1750637983827,41.04,132.33,132.28,8.2332522]
[1750637984830,48.5948,132.33,132.26,2.3558]
[1750637985025,48.5948,132.33,132.27,8.2332522]
[1750637985929,7.5552,132.32,132.29,7.5565]
[1750637986334,41.04,132.33,132.29,7.5565]
[1750637986722,48.5949,132.33,132.29,7.5565]
[1750637987840,7.5551,132.32,132.28,7.5572]
[1750637989434,7.5551,132.32,132.29,7.5567]
[1750637992041,41.04,132.33,132.29,8.2332522]
[1750637992238,41.04,132.33,132.28,8.2332522]
[1750637992543,7.556,132.31,132.28,7.5571]
[1750637992734,3.00065742,132.32,132.28,7.5571]
[1750637993438,10.55615742,132.32,132.28,7.5571]
[1750637994642,10.55615742,132.32,132.29,7.5567]
[1750637995341,7.5555,132.32,132.29,7.5567]
[1750637995537,48.5947,132.33,132.29,7.5567]
[1750637995741,41.04,132.33,132.28,7.5572]
[1750637996041,3.00075276,132.32,132.28,7.5572]
[1750637996237,7.5558,132.31,132.28,7.5572]
[1750637997738,81.22458702,132.32,132.25,10.51068702]
[1750637997941,15.15874368,132.31,132.25,2.2861]
[1750637998133,3.00312499,132.31,132.28,7.557]
[1750637998336,3.00312499,132.31,132.25,10.51068702]
[1750637998536,73.0,132.32,132.25,10.51068702]
[1750637998736,80.5554,132.32,132.25,10.51068702]
[1750637998942,80.5554,132.32,132.26,2.4422]
[1750637999137,73.0,132.32,132.26,2.4422]
[1750637999543,7.5557,132.31,132.28,7.5571]
[1750637999740,73.0,132.32,132.28,7.5571]
[1750638000841,80.5555,132.32,132.28,7.5571]
[1750638001049,80.5555,132.32,132.29,7.5568]
[1750638001741,10.55857869,132.31,132.28,7.5571]
[1750638001944,7.5558,132.31,132.28,7.5571]
[1750638002443,80.5553,132.32,132.29,7.5568]
[1750638002843,73.0,132.36,132.28,8.22458702]
[1750638003045,55.72328325,132.35,132.28,8.22458702]
[1750638003350,7.5548,132.33,132.28,8.22458702]
[1750638003544,12.16270628,132.33,132.27,2.5117]
[1750638003739,5.80733505,132.34,132.27,2.5117]
[1750638003935,15.16534027,132.33,132.27,2.5117]
[1750638004140,7.5554,132.32,132.29,7.5564]
[1750638004540,13.36213505,132.33,132.3,7.5562]
[1750638004843,7.5548,132.33,132.3,7.5562]
[1750638005645,5.808576,132.34,132.27,7.90820489]
[1750638005837,113.56,132.35,132.29,5.39650489]
[1750638006043,15.23074964,132.34,132.29,5.39650489]
[1750638006243,113.56,132.35,132.29,5.39650489]
[1750638006743,15.29479857,132.34,132.29,5.39650489]
[1750638006947,3.0715395,132.33,132.29,5.39650489]
[1750638007147,113.56,132.35,132.29,5.39650489]
[1750638007148,12.22352667,132.34,132.29,5.39650489]
[1750638007348,3.07167395,132.33,132.31,7.5553]
[1750638007551,7.5541,132.34,132.31,7.5553]
[1750638007848,3.07130475,132.33,132.31,7.5553]
[1750638008152,5.87329088,132.34,132.28,5.39650489]
[1750638008347,113.56,132.35,132.3,5.39650489]
[1750638008544,40.56,132.35,132.3,5.39650489]
[1750638009050,46.43250811,132.35,132.3,5.39650489]